fUST/lending_fUST_20250302
["ID","MTS","AMOUNT","RATE_DAILY","PERIOD"]
[355095368,1740891044645,-503.03,0.00022821,2]
[355095369,1740891044654,-500.0,0.00022821,2]
[355095370,1740891044664,-500.0,0.00022821,2]
[355095371,1740891044673,-995.77,0.00022821,2]
[355095372,1740891044682,-500.0,0.00022821,2]
[355095373,1740891044691,-574.97,0.00022821,2]
[355095374,1740891044704,-500.0,0.00022821,2]
[355095375,1740891044713,-646.07,0.00022821,2]
[355095376,1740891044722,-500.0,0.00022821,2]
[355095377,1740891044731,-500.0,0.00022821,2]
[355095378,1740891044746,-505.01,0.00022821,2]
[355095379,1740891044756,-500.0,0.00022821,2]
[355095380,1740891044766,-500.0,0.00022821,2]
[355095381,1740891044778,-921.28,0.00022821,2]
[355095382,1740891044787,-534.24562469,0.00022821,2]
[355095383,1740891044797,-500.0,0.00022821,2]
[355095384,1740891044807,-500.0,0.00022821,2]
[355095385,1740891044816,-500.0,0.00022821,2]
[355095386,1740891044826,-500.0,0.00022821,2]
[355095387,1740891044836,-500.0,0.00022821,2]
[355095388,1740891044846,-500.0,0.00022821,2]
[355095389,1740891044856,-500.0,0.00022821,2]
[355095390,1740891044866,-500.0,0.00022821,2]
[355095391,1740891044875,-500.0,0.00022821,2]
[355095392,1740891044885,-500.0,0.00022821,2]
[355095393,1740891044895,-500.0,0.00022821,2]
[355095394,1740891044904,-690.0,0.00022821,2]
[355095395,1740891044914,-500.0,0.00022821,2]
[355095396,1740891044924,-500.0,0.00022821,2]
[355095397,1740891044935,-586.41,0.00022821,2]
[355095398,1740891044944,-500.0,0.00022821,2]
[355095399,1740891044954,-500.0,0.00022821,2]
[355095400,1740891044963,-500.0,0.00022821,2]
[355095401,1740891044973,-500.0,0.00022821,2]
[355095402,1740891044983,-1564.87,0.00022821,2]
[355095403,1740891044993,-1548.28,0.00022821,2]
[355095404,1740891045002,-636.65,0.00022821,2]
[355095405,1740891045013,-80347.49,0.00022821,2]
[355095406,1740891045022,-500.0,0.00022821,2]
[355095407,1740891045032,-1814.59,0.00022821,2]
[355095408,1740891045041,-983.66,0.00022821,2]
[355095409,1740891045051,-500.0,0.00022821,2]
[355095410,1740891045060,-2298.01,0.00022821,2]
[355095411,1740891045071,-500.0,0.00022821,2]
[355095412,1740891045081,-500.0,0.00022821,2]
[355095413,1740891045091,-500.0,0.00022821,2]
[355095414,1740891045100,-500.0,0.00022821,2]
[355095415,1740891045110,-500.0,0.00022821,2]
[355095416,1740891045120,-500.0,0.00022821,2]
[355095417,1740891045130,-500.0,0.00022821,2]
[355095418,1740891045140,-568.53,0.00022821,2]
[355095419,1740891045150,-675.58,0.00022821,2]
[355095420,1740891045160,-500.0,0.00022821,2]
[355095421,1740891045170,-500.0,0.00022821,2]
[355095422,1740891045180,-500.0,0.00022821,2]
[355095423,1740891045190,-500.0,0.00022821,2]
[355095424,1740891045200,-500.0,0.00022821,2]
[355095425,1740891045209,-500.0,0.00022821,2]
[355095426,1740891045219,-500.0,0.00022821,2]
[355095427,1740891045228,-500.0,0.00022821,2]
[355095428,1740891045238,-500.0,0.00022821,2]
[355095429,1740891045248,-1404.94,0.00022821,2]
[355095430,1740891045257,-500.0,0.00022821,2]
[355095431,1740891045267,-913.28,0.00022821,2]
[355095432,1740891045277,-500.0,0.00022821,2]
[355095433,1740891045288,-1435.15,0.00022821,2]
[355095434,1740891045297,-500.0,0.00022821,2]
[355095435,1740891045307,-500.0,0.00022821,2]
[355095436,1740891045316,-192.2573363,0.00022995,2]
[355095437,1740891045326,-900.0,0.00023,10]
[355095438,1740891045335,-500.0,0.00023,10]
[355095439,1740891045345,-900.0,0.00023,10]
[355095440,1740891045355,-500.0,0.00023,10]
[355095441,1740891045365,-900.0,0.00023,10]
[355095442,1740891045375,-500.0,0.00023,10]
[355095443,1740891045386,-900.0,0.00023,10]
[355095444,1740891045396,-505.32987184,0.00023,10]
[355095445,1740891045406,-900.0,0.00023,10]
[355095446,1740891045416,-900.0,0.00023,10]
[355095447,1740891045426,-900.0,0.00023,10]
[355095448,1740891045435,-900.0,0.00023,10]
[355095449,1740891045446,-900.0,0.00023,10]
[355095450,1740891045455,-900.0,0.00023,10]
[355095451,1740891045466,-900.0,0.00023,10]
[355095452,1740891045476,-500.0,0.00023,10]
[355095453,1740891045487,-900.0,0.00023,10]
[355095454,1740891045497,-500.0,0.00023,10]
[355095455,1740891045507,-1578.1143091,0.00023,10]
[355095456,1740891045517,-500.0,0.00023,10]
[355095457,1740891045527,-500.0,0.00023,10]
[355095458,1740891045538,-500.0,0.00023,10]
[355095459,1740891045548,-506.86201686,0.00023,10]
[355095460,1740891045558,-500.0,0.00023,10]
[355095461,1740891045568,-502.09361764,0.00023,10]
[355095462,1740891045578,-1200.0,0.00023,10]
[355095463,1740891045588,-1200.0,0.00023,10]
[355095464,1740891045599,-1200.0,0.00023,10]
[355095465,1740891045609,-1200.0,0.00023,10]
[355095466,1740891045618,-1200.0,0.00023,10]
[355095467,1740891045628,-1200.0,0.00023,10]
[355095468,1740891045638,-1200.0,0.00023,10]
[355095469,1740891045648,-1200.0,0.00023,10]
[355095470,1740891045657,-1200.0,0.00023,10]
[355095471,1740891045668,-1200.0,0.00023,10]
[355095472,1740891045678,-1200.0,0.00023,10]
[355095473,1740891045688,-1200.0,0.00023,10]
[355095474,1740891045700,-1200.0,0.00023,10]
[355095475,1740891045710,-1391.87633131,0.00023,10]
[355095476,1740891045721,-19629.85965445,0.00023,10]
[355095477,1740891045731,-17293.1474866,0.00023065,2]
[355095478,1740891045743,-3815.13,0.00023091,2]
[355095479,1740891045752,-2139.17,0.00023091,2]
[355095480,1740891045764,-1000.0,0.00023091,5]
[355095481,1740891045775,-670.21,0.00023091,2]
[355095482,1740891045786,-500.0,0.00023091,2]
[355095483,1740891045797,-502.66,0.00023091,2]
[355095484,1740891045807,-500.0,0.00023091,2]
[355095485,1740891045818,-594.37,0.00023091,2]
[355095486,1740891045828,-3134.93,0.00023091,2]
[355095487,1740891045839,-500.0,0.00023091,2]
[355095488,1740891045849,-767.93,0.00023091,2]
[355095489,1740891045865,-589.5,0.00023091,2]
[355095490,1740891045875,-7112.25,0.00023091,2]
[355095491,1740891045885,-5667.16,0.00023091,2]
[355095492,1740891045894,-3514.94,0.00023091,2]
[355095493,1740891045904,-500.0,0.00023092,2]
[355095494,1740891045913,-500.0,0.00023092,2]
[355095495,1740891045923,-500.0,0.00023092,2]
[355095496,1740891045932,-500.0,0.00023092,2]
[355095497,1740891045941,-500.0,0.00023092,2]
[355095498,1740891045951,-500.0,0.00023092,2]
[355095499,1740891045960,-500.0,0.00023092,2]
[355095500,1740891045969,-500.0,0.00023092,2]
[355095501,1740891045980,-500.0,0.00023092,2]
[355095502,1740891045989,-464.08,0.00023092,2]
[355095503,1740891045999,-533.76,0.00023092,2]
[355095504,1740891046009,-500.0,0.00023092,2]
[355095505,1740891046019,-500.0,0.00023092,2]
[355095506,1740891046029,-192.36,0.00023092,2]
[355095507,1740891046039,-500.0,0.00023092,2]
[355095508,1740891046049,-500.0,0.00023092,2]
[355095509,1740891046059,-500.0,0.00023092,2]
[355095510,1740891046068,-753.47,0.00023092,2]
[355095511,1740891046078,-500.0,0.00023092,2]
[355095512,1740891046088,-500.0,0.00023092,2]
[355095513,1740891046097,-601.76498362,0.00023092,2]
[355095514,1740891046107,-500.0,0.00023092,2]
[355095515,1740891046116,-500.0,0.00023092,2]
[355095516,1740891046126,-500.0,0.00023092,2]
[355095517,1740891046135,-250.0,0.00023092,2]
[355095518,1740891046145,-1154.3,0.00023093,2]
[355095519,1740891046154,-500.0,0.00023093,2]
[355095520,1740891046164,-2973.81,0.00023093,2]
[355095521,1740891046173,-914.1,0.00023093,2]
[355095522,1740891046183,-500.0,0.00023093,2]
[355095523,1740891046193,-500.0,0.00023093,2]
[355095524,1740891046332,-505.03,0.00023093,2]
[355095525,1740891046371,-500.0,0.00023093,2]
[355095526,1740891046382,-500.0,0.00023093,2]
[355095527,1740891046392,-1772.49,0.00023093,2]
[355095528,1740891046402,-682.1,0.00023093,2]
[355095529,1740891046412,-3795.35,0.00023093,2]
[355095530,1740891046422,-543.9,0.00023093,2]
[355095531,1740891046432,-5730.46,0.00023093,2]
[355095532,1740891046442,-500.0,0.00023093,2]
[355095533,1740891046452,-4535.27,0.00023093,2]
[355095534,1740891046462,-500.0,0.00023093,2]
[355095535,1740891046472,-500.0,0.00023093,2]
[355095536,1740891046482,-500.0,0.00023093,2]
[355095537,1740891046491,-500.0,0.00023093,2]
[355095538,1740891046502,-500.0,0.00023093,2]
[355095539,1740891046512,-1236.92,0.00023093,2]
[355095540,1740891046522,-1887.83,0.00023093,2]
[355095541,1740891046532,-713.67,0.00023093,2]
[355095542,1740891046543,-500.0,0.00023093,2]
[355095543,1740891046554,-500.0,0.00023093,2]
[355095544,1740891046564,-1282.57,0.00023093,2]
[355095545,1740891046573,-463.15,0.00023093,2]
[355095546,1740891046583,-500.0,0.00023093,2]
[355095547,1740891046593,-2373.21,0.00023093,2]
[355095548,1740891046603,-6974.83,0.00023093,2]
[355095549,1740891046613,-706.65,0.00023093,2]
[355095550,1740891046623,-904.54,0.00023093,2]
[355095551,1740891046633,-598.51,0.00023093,2]
[355095552,1740891046643,-2161.29,0.00023093,2]
[355095553,1740891046654,-500.0,0.00023095,2]
[355095554,1740891046663,-500.0,0.00023095,2]
[355095555,1740891046673,-500.0,0.00023095,2]
[355095556,1740891046683,-500.0,0.00023095,2]
[355095557,1740891046692,-724.09,0.00023095,2]
[355095558,1740891046706,-500.0,0.00023095,2]
[355095559,1740891046717,-730.08,0.00023095,2]
[355095560,1740891046727,-500.0,0.00023095,2]
[355095561,1740891046739,-500.0,0.00023095,2]
[355095562,1740891046749,-944.38,0.00023095,2]
[355095563,1740891046758,-500.0,0.00023095,2]
[355095564,1740891046768,-570.76,0.00023095,2]
[355095565,1740891046779,-500.0,0.00023095,2]
[355095566,1740891046788,-500.0,0.00023095,2]
[355095567,1740891046798,-500.0,0.00023095,2]
[355095568,1740891046807,-503.03,0.00023095,2]
[355095569,1740891046817,-500.0,0.00023095,2]
[355095570,1740891046826,-995.77,0.00023095,2]
[355095571,1740891046836,-500.0,0.00023095,2]
[355095572,1740891046846,-574.97,0.00023095,2]
[355095573,1740891046856,-500.0,0.00023095,2]
[355095574,1740891046866,-509.73,0.00023095,2]
[355095575,1740891046876,-500.0,0.00023095,2]
[355095576,1740891046886,-500.0,0.00023095,2]
[355095577,1740891046896,-500.0,0.00023095,2]
[355095579,1740891046906,-921.28,0.00023095,2]
[355095581,1740891046915,-500.0,0.00023095,2]
[355095583,1740891046925,-500.0,0.00023095,2]
[355095585,1740891046934,-500.0,0.00023095,2]
[355095587,1740891046945,-500.0,0.00023095,2]
[355095589,1740891046955,-500.0,0.00023095,2]
[355095591,1740891046965,-500.0,0.00023095,2]
[355095593,1740891046975,-562.08,0.00023095,2]
[355095595,1740891046985,-500.0,0.00023095,2]
[355095597,1740891046995,-500.0,0.00023095,2]
[355095599,1740891047005,-690.0,0.00023095,2]
[355095600,1740891047015,-503.94685675,0.00023095,2]
[355095602,1740891047025,-500.0,0.00023095,2]
[355095604,1740891047035,-586.41,0.00023095,2]
[355095606,1740891047045,-500.0,0.00023095,2]
[355095608,1740891047055,-1564.87,0.00023095,2]
[355095610,1740891047065,-1548.28,0.00023095,2]
[355095612,1740891047075,-636.65,0.00023095,2]
[355095614,1740891047084,-80347.49,0.00023095,2]
[355095616,1740891047094,-500.0,0.00023095,2]
[355095618,1740891047104,-1814.59,0.00023095,2]
[355095619,1740891047114,-983.66,0.00023095,2]
[355095622,1740891047123,-500.0,0.00023095,2]
[355095624,1740891047134,-2298.01,0.00023095,2]
[355095626,1740891047145,-500.0,0.00023095,2]
[355095628,1740891047155,-500.0,0.00023095,2]
[355095630,1740891047164,-500.0,0.00023095,2]
[355095632,1740891047174,-500.0,0.00023095,2]
[355095633,1740891047185,-500.0,0.00023095,2]
[355095634,1740891047195,-500.0,0.00023095,2]
[355095635,1740891047206,-568.53,0.00023095,2]
[355095636,1740891047216,-675.58,0.00023095,2]
[355095637,1740891047226,-500.0,0.00023095,2]
[355095638,1740891047236,-484.68,0.00023095,2]
[355095639,1740891047246,-500.0,0.00023095,2]
[355095640,1740891047257,-500.0,0.00023095,2]
[355095641,1740891047268,-500.0,0.00023095,2]
[355095642,1740891047278,-500.0,0.00023095,2]
[355095643,1740891047288,-500.0,0.00023095,2]
[355095644,1740891047298,-500.0,0.00023095,2]
[355095645,1740891047308,-500.0,0.00023095,2]
[355095646,1740891047317,-1404.94,0.00023095,2]
[355095647,1740891047328,-500.0,0.00023095,2]
[355095648,1740891047337,-913.28,0.00023095,2]
[355095649,1740891047348,-500.0,0.00023095,2]
[355095650,1740891047358,-1435.15,0.00023095,2]
[355095651,1740891047367,-531.08,0.00023095,2]
[355095652,1740891047378,-500.0,0.00023095,2]
[355095653,1740891047387,-176.489594,0.00023095,2]
[355095654,1740891047397,-222000.0,0.00023205,2]
[355095655,1740891047407,-500.0,0.00023304,2]
[355095656,1740891047416,-500.0,0.00023304,2]
[355095657,1740891047426,-500.0,0.00023304,2]
[355095658,1740891047437,-500.0,0.00023304,2]
[355095659,1740891047447,-500.0,0.00023304,2]
[355095660,1740891047457,-500.0,0.00023304,2]
[355095661,1740891047467,-500.0,0.00023304,2]
[355095662,1740891047477,-607.0,0.00023304,2]
[355095663,1740891047487,-500.0,0.00023304,2]
[355095664,1740891047498,-500.0,0.00023304,2]
[355095665,1740891047508,-500.0,0.00023304,2]
[355095666,1740891047518,-500.0,0.00023304,2]
[355095667,1740891047528,-500.0,0.00023304,2]
[355095668,1740891047538,-500.0,0.00023304,2]
[355095669,1740891047548,-500.0,0.00023304,2]
[355095670,1740891047558,-618.37,0.00023304,2]
[355095671,1740891047569,-500.0,0.00023304,2]
[355095672,1740891047578,-498.29310713,0.00023304,2]
[355095673,1740891047588,-500.0,0.00023304,2]
[355095674,1740891047599,-500.0,0.00023304,2]
[355095675,1740891047609,-500.0,0.00023304,2]
[355095676,1740891047619,-500.0,0.00023304,2]
[355095677,1740891047629,-500.0,0.00023304,2]
[355095678,1740891047639,-500.0,0.00023304,2]
[355095679,1740891047649,-500.0,0.00023304,2]
[355095680,1740891047659,-500.0,0.00023304,2]
[355095681,1740891047669,-500.0,0.00023304,2]
[355095682,1740891047679,-617.74,0.00023304,2]
[355095683,1740891047689,-500.0,0.00023304,2]
[355095684,1740891047700,-500.0,0.00023304,2]
[355095685,1740891047712,-500.0,0.00023304,2]
[355095686,1740891047722,-500.0,0.00023304,2]
[355095687,1740891047731,-604.16,0.00023304,2]
[355095688,1740891047741,-500.0,0.00023304,2]
[355095689,1740891047752,-541.93827933,0.00023304,2]
[355095690,1740891047763,-500.0,0.00023304,2]
[355095691,1740891047774,-500.0,0.00023304,2]
[355095692,1740891047785,-500.0,0.00023304,2]
[355095693,1740891047795,-500.0,0.00023304,2]
[355095694,1740891047805,-500.0,0.00023304,2]
[355095695,1740891047815,-500.0,0.00023304,2]
[355095696,1740891047825,-500.0,0.00023304,2]
[355095697,1740891047835,-510.21183711,0.00023304,2]
[355095698,1740891047846,-517.22,0.00023304,2]
[355095699,1740891047856,-500.0,0.00023304,2]
[355095700,1740891047867,-500.0,0.00023304,2]
[355095701,1740891047878,-500.0,0.00023304,2]
[355095702,1740891047888,-500.0,0.00023304,2]
[355095703,1740891047897,-500.0,0.00023304,2]
[355095704,1740891047908,-500.0,0.00023304,2]
[355095705,1740891047918,-500.0,0.00023304,2]
[355095706,1740891047928,-500.0,0.00023304,2]
[355095707,1740891047937,-500.0,0.00023304,2]
[355095708,1740891047948,-500.0,0.00023304,2]
[355095709,1740891047958,-500.0,0.00023304,2]
[355095710,1740891047968,-500.0,0.00023304,2]
[355095711,1740891047979,-500.0,0.00023304,2]
[355095712,1740891047989,-503.0,0.00023304,2]
[355095713,1740891047999,-500.0,0.00023304,2]
[355095714,1740891048008,-500.0,0.00023304,2]
[355095715,1740891048018,-500.0,0.00023304,2]
[355095716,1740891048028,-500.0,0.00023304,2]
[355095717,1740891048038,-500.0,0.00023304,2]
[355095718,1740891048047,-500.0,0.00023304,2]
[355095719,1740891048058,-500.0,0.00023304,2]
[355095720,1740891048068,-500.0,0.00023304,2]
[355095721,1740891048077,-500.0,0.00023304,2]
[355095722,1740891048089,-500.0,0.00023304,2]
[355095723,1740891048099,-500.0,0.00023304,2]
[355095724,1740891048109,-500.0,0.00023304,2]
[355095725,1740891048119,-500.0,0.00023304,2]
[355095726,1740891048129,-500.0,0.00023304,2]
[355095727,1740891048142,-500.0,0.00023304,2]
[355095728,1740891048152,-685.0,0.00023304,2]
[355095729,1740891048162,-500.0,0.00023304,2]
[355095730,1740891048172,-500.0,0.00023304,2]
[355095731,1740891048183,-500.0,0.00023304,2]
[355095732,1740891048193,-500.0,0.00023304,2]
[355095733,1740891048203,-500.0,0.00023304,2]
[355095734,1740891048215,-500.0,0.00023304,2]
[355095735,1740891048226,-500.0,0.00023304,2]
[355095736,1740891048236,-500.0,0.00023304,2]
[355095737,1740891048246,-500.0,0.00023304,2]
[355095738,1740891048256,-1756.49,0.00023304,2]
[355095739,1740891048266,-500.0,0.00023304,2]
[355095740,1740891048276,-500.67774487,0.00023304,2]
[355095741,1740891048286,-500.0,0.00023304,2]
[355095742,1740891048296,-500.0,0.00023304,2]
[355095743,1740891048306,-628.74476192,0.00023304,2]
[355095744,1740891048316,-500.0,0.00023304,2]
[355095745,1740891048326,-500.0,0.00023304,2]
[355095746,1740891048336,-500.0,0.00023304,2]
[355095747,1740891048346,-500.0,0.00023304,2]
[355095748,1740891048356,-500.0,0.00023304,2]
[355095749,1740891048367,-500.0,0.00023304,2]
[355095750,1740891048376,-500.0,0.00023304,2]
[355095751,1740891048386,-552.41785918,0.00023304,2]
[355095752,1740891048396,-500.0,0.00023304,2]
[355095753,1740891048406,-507.26969698,0.00023304,2]
[355095754,1740891048415,-500.0,0.00023304,2]
[355095755,1740891048425,-500.0,0.00023304,2]
[355095756,1740891048435,-500.0,0.00023304,2]
[355095757,1740891048446,-500.0,0.00023304,2]
[355095758,1740891048458,-1000.0,0.00023304,2]
[355095759,1740891048468,-500.0,0.00023304,2]
[355095760,1740891048478,-500.0,0.00023304,2]
[355095761,1740891048488,-500.0,0.00023304,2]
[355095762,1740891048499,-500.0,0.00023304,2]
[355095763,1740891048509,-500.0,0.00023304,2]
[355095764,1740891048525,-500.0,0.00023304,2]
[355095765,1740891048539,-500.0,0.00023304,2]
[355095766,1740891048550,-500.0,0.00023304,2]
[355095767,1740891048561,-500.0,0.00023304,2]
[355095768,1740891048571,-500.0,0.00023304,2]
[355095769,1740891048581,-500.0,0.00023304,2]
[355095770,1740891048591,-500.0,0.00023304,2]
[355095771,1740891048601,-500.0,0.00023304,2]
[355095772,1740891048611,-500.0,0.00023304,2]
[355095773,1740891048621,-500.0,0.00023304,2]
[355095774,1740891048631,-516.11088041,0.00023304,2]
[355095775,1740891048641,-500.0,0.00023304,2]
[355095776,1740891048651,-500.0,0.00023304,2]
[355095777,1740891048660,-500.0,0.00023304,2]
[355095778,1740891048670,-500.0,0.00023304,2]
[355095779,1740891048680,-500.0,0.00023304,2]
[355095780,1740891048690,-500.0,0.00023304,2]
[355095781,1740891048702,-241.24967432,0.00023304,2]
[355095782,1740891048712,-566.7,0.00023304,2]
[355095783,1740891048722,-500.0,0.00023304,2]
[355095784,1740891048733,-500.0,0.00023304,2]
[355095785,1740891048744,-500.0,0.00023304,2]
[355095786,1740891048754,-500.0,0.00023304,2]
[355095787,1740891048765,-500.0,0.00023304,2]
[355095788,1740891048777,-500.0,0.00023304,2]
[355095789,1740891048787,-500.0,0.00023304,2]
[355095790,1740891048796,-501.2593322,0.00023304,2]
[355095791,1740891048810,-500.0,0.00023304,2]
[355095792,1740891048820,-500.0,0.00023304,2]
[355095793,1740891048829,-500.0,0.00023304,2]
[355095794,1740891048839,-500.0,0.00023304,2]
[355095795,1740891048849,-500.0,0.00023304,2]
[355095796,1740891048858,-500.0,0.00023304,2]
[355095797,1740891048868,-500.0,0.00023304,2]
[355095798,1740891048877,-500.77121331,0.00023304,2]
[355095799,1740891048887,-500.0,0.00023304,2]
[355095800,1740891048896,-500.0,0.00023304,2]
[355095801,1740891048957,-500.0,0.00023304,2]
[355095802,1740891048968,-500.0,0.00023304,2]
[355095803,1740891048978,-500.0,0.00023304,2]
[355095804,1740891048987,-500.0,0.00023304,2]
[355095805,1740891048997,-500.0,0.00023304,2]
[355095806,1740891049006,-500.0,0.00023304,2]
[355095807,1740891049016,-500.0,0.00023304,2]
[355095808,1740891049025,-500.0,0.00023304,2]
[355095809,1740891049035,-500.0,0.00023304,2]
[355095810,1740891049045,-500.0,0.00023304,2]
[355095811,1740891049054,-500.0,0.00023304,2]
[355095812,1740891049063,-500.0,0.00023304,2]
[355095813,1740891049073,-500.0,0.00023304,2]
[355095814,1740891049083,-500.0,0.00023304,2]
[355095815,1740891049092,-500.0,0.00023304,2]
[355095816,1740891049102,-500.0,0.00023304,2]
[355095817,1740891049112,-500.0,0.00023304,2]
[355095818,1740891049122,-500.0,0.00023304,2]
[355095819,1740891049132,-500.0,0.00023304,2]
[355095820,1740891049141,-500.0,0.00023304,2]
[355095821,1740891049151,-500.0,0.00023304,2]
[355095822,1740891049161,-349.4,0.00023356,3]
[355095823,1740891049170,-3815.13,0.00023365,2]
[355095824,1740891049180,-2139.17,0.00023365,2]
[355095825,1740891049190,-1000.0,0.00023365,5]
[355095826,1740891049200,-670.21,0.00023365,2]
[355095827,1740891049210,-500.0,0.00023365,2]
[355095828,1740891049219,-502.66,0.00023365,2]
[355095829,1740891049229,-500.0,0.00023365,2]
[355095830,1740891049239,-594.37,0.00023365,2]
[355095831,1740891049249,-3134.93,0.00023365,2]
[355095832,1740891049259,-500.0,0.00023365,2]
[355095833,1740891049269,-767.93,0.00023365,2]
[355095834,1740891049278,-7112.25,0.00023365,2]
[355095835,1740891049288,-5667.16,0.00023365,2]
[355095836,1740891049298,-3514.94,0.00023365,2]
[355095837,1740891049308,-500.0,0.00023366,2]
[355095838,1740891049317,-500.0,0.00023366,2]
[355095839,1740891049327,-500.0,0.00023366,2]
[355095840,1740891049336,-500.0,0.00023366,2]
[355095841,1740891049345,-500.0,0.00023366,2]
[355095842,1740891049356,-500.0,0.00023366,2]
[355095843,1740891049366,-560.65,0.00023366,2]
[355095844,1740891049375,-500.0,0.00023366,2]
[355095845,1740891049384,-500.0,0.00023366,2]
[355095846,1740891049394,-533.76,0.00023366,2]
[355095847,1740891049403,-500.0,0.00023366,2]
[355095848,1740891049413,-500.0,0.00023366,2]
[355095849,1740891049423,-500.0,0.00023366,2]
[355095850,1740891049433,-500.0,0.00023366,2]
[355095851,1740891049443,-500.0,0.00023366,2]
[355095852,1740891049454,-753.47,0.00023366,2]
[355095853,1740891049465,-500.0,0.00023366,2]
[355095854,1740891049476,-554.6,0.00023366,2]
[355095855,1740891049489,-502.94,0.00023366,2]
[355095856,1740891049502,-500.0,0.00023366,2]
[355095857,1740891049513,-250.0,0.00023366,2]
[355095858,1740891049522,-1154.3,0.00023367,2]
[355095859,1740891049532,-500.0,0.00023367,2]
[355095860,1740891049542,-2973.81,0.00023367,2]
[355095861,1740891049552,-914.1,0.00023367,2]
[355095862,1740891049561,-500.0,0.00023367,2]
[355095863,1740891049571,-368.98,0.00023367,2]
[355095864,1740891049581,-505.03,0.00023367,2]
[355095865,1740891049591,-288.96,0.00023367,2]
[355095866,1740891049600,-500.0,0.00023367,2]
[355095867,1740891049610,-1772.49,0.00023367,2]
[355095868,1740891049619,-682.1,0.00023367,2]
[355095869,1740891049629,-3795.35,0.00023367,2]
[355095870,1740891049639,-543.9,0.00023367,2]
[355095871,1740891049648,-5730.46,0.00023367,2]
[355095872,1740891049658,-500.0,0.00023367,2]
[355095873,1740891049667,-4535.27,0.00023367,2]
[355095874,1740891049677,-595.9,0.00023367,2]
[355095875,1740891049687,-500.0,0.00023367,2]
[355095876,1740891049698,-581.05,0.00023367,2]
[355095877,1740891049712,-500.0,0.00023367,2]
[355095878,1740891049722,-500.0,0.00023367,2]
[355095879,1740891049731,-1236.92,0.00023367,2]
[355095880,1740891049741,-1887.83,0.00023367,2]
[355095881,1740891049753,-713.67,0.00023367,2]
[355095882,1740891049764,-500.0,0.00023367,2]
[355095883,1740891049773,-500.0,0.00023367,2]
[355095884,1740891049786,-1282.57,0.00023367,2]
[355095885,1740891049795,-500.0,0.00023367,2]
[355095886,1740891049805,-2373.21,0.00023367,2]
[355095887,1740891049814,-6974.83,0.00023367,2]
[355095888,1740891049824,-706.65,0.00023367,2]
[355095889,1740891049833,-904.54,0.00023367,2]
[355095890,1740891049843,-598.51,0.00023367,2]
[355095891,1740891049852,-2161.29,0.00023367,2]
[355095892,1740891049862,-500.0,0.00023369,2]
[355095893,1740891049871,-500.0,0.00023369,2]
[355095894,1740891049881,-500.0,0.00023369,2]